lending/lending_fUSD_20250122
["ID","MTS","AMOUNT","RATE_DAILY","PERIOD"]
[349969554,1737541844434,-500.0,0.00019713,2]
[349969555,1737541844443,-300.13978384,0.00019713,2]
[349969556,1737541844452,-500.0,0.00019713,2]
[349969557,1737541844462,-500.0,0.00019713,2]
[349969558,1737541844471,-206.53887557,0.00019713,2]
[349969559,1737541844480,-500.0,0.00019713,2]
[349969560,1737541844489,-500.0,0.00019713,2]
[349969561,1737541844499,-500.0,0.00019713,2]
[349969562,1737541844508,-500.0,0.00019713,2]
[349969563,1737541844518,-500.0,0.00019713,2]
[349969564,1737541844527,-500.0,0.00019713,2]
[349969565,1737541844536,-500.0,0.00019713,2]
[349969566,1737541844546,-500.0,0.00019713,2]
[349969567,1737541844555,-649.13,0.00019713,2]
[349969568,1737541844564,-500.0,0.00019713,2]
[349969569,1737541844574,-500.0,0.00019713,2]
[349969570,1737541844583,-500.0,0.00019713,2]
[349969571,1737541844593,-803.34,0.00019713,2]
[349969572,1737541844603,-500.0,0.00019713,2]
[349969573,1737541844612,-558.09,0.00019713,2]
[349969574,1737541844621,-500.0,0.00019713,2]
[349969575,1737541844631,-685.56,0.00019713,2]
[349969576,1737541844640,-500.0,0.00019713,2]
[349969577,1737541844650,-500.0,0.00019713,2]
[349969578,1737541844663,-500.0,0.00019713,2]
[349969579,1737541844684,-500.0,0.00019713,2]
[349969580,1737541844694,-551.34,0.00019713,2]
[349969581,1737541844703,-500.0,0.00019713,2]
[349969582,1737541844713,-500.0,0.00019713,2]
[349969583,1737541844722,-500.0,0.00019713,2]
[349969584,1737541844732,-500.0,0.00019713,2]
[349969585,1737541844746,-500.0,0.00019713,2]
[349969586,1737541844755,-500.0,0.00019713,2]
[349969587,1737541844765,-500.0,0.00019713,2]
[349969588,1737541844774,-256.16825079,0.00019713,2]
[349969589,1737541844787,-576.63,0.00019713,2]
[349969590,1737541844800,-500.0,0.00019713,2]
[349969591,1737541844818,-500.0,0.00019713,2]
[349969592,1737541844832,-500.0,0.00019713,2]
[349969593,1737541844843,-645.06,0.00019713,2]
[349969594,1737541844857,-613.56,0.00019713,2]
[349969595,1737541844872,-500.0,0.00019713,2]
[349969596,1737541844884,-500.0,0.00019713,2]
[349969597,1737541844899,-741.78,0.00019713,2]
[349969598,1737541844915,-572.14,0.00019713,2]
[349969599,1737541844928,-808.38,0.00019713,2]
[349969600,1737541844941,-500.0,0.00019713,2]
[349969601,1737541844952,-500.0,0.00019713,2]
[349969602,1737541844965,-500.0,0.00019713,2]
[349969603,1737541844979,-500.0,0.00019713,2]
[349969604,1737541844994,-489.93853176,0.00019713,2]
[349969605,1737541845007,-500.0,0.00019713,2]
[349969606,1737541845021,-500.0,0.00019713,2]
[349969607,1737541845036,-500.0,0.00019713,2]
[349969608,1737541845049,-500.0,0.00019713,2]
[349969609,1737541845063,-352.0998606,0.00019713,2]
[349969610,1737541845080,-792.14,0.00019713,2]
[349969611,1737541845094,-674.1,0.00019713,2]
[349969612,1737541845109,-500.0,0.00019713,2]
[349969613,1737541845123,-500.0,0.00019713,2]
[349969614,1737541845138,-864.89,0.00019713,2]
[349969615,1737541845154,-740.39,0.00019713,2]
[349969616,1737541845170,-500.0,0.00019713,2]
[349969617,1737541845184,-500.0,0.00019713,2]
[349969618,1737541845197,-500.0,0.00019713,2]
[349969619,1737541845208,-468.8246174,0.00019713,2]
[349969620,1737541845219,-500.0,0.00019713,2]
[349969621,1737541845233,-500.0,0.00019713,2]
[349969622,1737541845249,-500.0,0.00019713,2]
[349969623,1737541845261,-500.0,0.00019713,2]
[349969624,1737541845273,-500.0,0.00019713,2]
[349969625,1737541845285,-500.0,0.00019713,2]
[349969626,1737541845299,-500.0,0.00019713,2]
[349969627,1737541845313,-500.0,0.00019713,2]
[349969628,1737541845326,-500.0,0.00019713,2]
[349969629,1737541845338,-500.0,0.00019713,2]
[349969630,1737541845350,-500.0,0.00019713,2]
[349969631,1737541845362,-500.0,0.00019713,2]
[349969632,1737541845374,-680.5,0.00019713,2]
[349969633,1737541845385,-500.0,0.00019713,2]
[349969634,1737541845397,-500.0,0.00019713,2]
[349969635,1737541845408,-1854.8,0.00019713,2]
[349969636,1737541845420,-4049.8,0.00019713,2]
[349969637,1737541845432,-500.0,0.00019713,2]
[349969638,1737541845444,-730.82,0.00019713,2]
[349969639,1737541845456,-500.0,0.00019713,2]
[349969640,1737541845468,-7307.34,0.00019713,2]
[349969641,1737541845480,-822.78,0.00019713,2]
[349969642,1737541845493,-299.60229819,0.00019713,2]
[349969643,1737541845505,-500.0,0.00019713,2]
[349969644,1737541845518,-500.0,0.00019713,2]
[349969645,1737541845529,-985.38,0.00019713,2]
[349969646,1737541845541,-500.0,0.00019713,2]
[349969647,1737541845552,-500.0,0.00019713,2]
[349969648,1737541845564,-764.97,0.00019713,2]
[349969649,1737541845576,-617.66,0.00019713,2]
[349969650,1737541845587,-2071.46,0.00019713,2]
[349969651,1737541845598,-500.0,0.00019713,2]
[349969652,1737541845610,-500.0,0.00019713,2]
[349969653,1737541845624,-500.0,0.00019713,2]
[349969654,1737541845635,-500.0,0.00019713,2]
[349969655,1737541845647,-500.0,0.00019713,2]
[349969656,1737541845659,-521.86,0.00019713,2]
[349969657,1737541845670,-500.0,0.00019713,2]
[349969658,1737541845682,-934.2,0.00019713,2]
[349969659,1737541845693,-500.0,0.00019713,2]
[349969660,1737541845705,-500.0,0.00019713,2]
[349969661,1737541845716,-1295.45,0.00019713,2]
[349969662,1737541845728,-1443.13,0.00019713,2]
[349969663,1737541845740,-500.0,0.00019713,2]
[349969664,1737541845752,-500.0,0.00019713,2]
[349969665,1737541845763,-500.0,0.00019713,2]
[349969666,1737541845775,-1043.46,0.00019713,2]
[349969667,1737541845786,-1000.0,0.00019713,2]
[349969668,1737541845798,-500.0,0.00019713,2]
[349969669,1737541845812,-706.31,0.00019713,2]
[349969670,1737541845827,-734.78,0.00019713,2]
[349969671,1737541845838,-500.0,0.00019713,2]
[349969672,1737541845850,-1024.34,0.00019713,2]
[349969673,1737541845863,-2026.46,0.00019713,2]
[349969674,1737541845875,-1666.71,0.00019713,2]
[349969675,1737541845887,-500.0,0.00019713,2]
[349969676,1737541845899,-856.41,0.00019713,2]
[349969677,1737541845911,-500.0,0.00019713,2]
[349969678,1737541845922,-500.0,0.00019713,2]
[349969679,1737541845935,-500.0,0.00019713,2]
[349969680,1737541845947,-500.0,0.00019713,2]
[349969681,1737541845962,-797.53,0.00019713,2]
[349969682,1737541845975,-223.75000461,0.00019713,2]
[349969683,1737541845987,-500.0,0.00019713,2]
[349969684,1737541845999,-500.0,0.00019713,2]
[349969685,1737541846011,-500.0,0.00019713,2]
[349969686,1737541846023,-500.0,0.00019713,2]
[349969687,1737541846034,-500.0,0.00019713,2]
[349969688,1737541846046,-500.0,0.00019714,2]
[349969689,1737541846058,-500.0,0.00019714,2]
[349969690,1737541846072,-500.0,0.00019714,2]
[349969691,1737541846083,-500.0,0.00019714,2]
[349969692,1737541846095,-500.0,0.00019714,2]
[349969693,1737541846112,-500.0,0.00019714,2]
[349969694,1737541846123,-500.0,0.00019714,2]
[349969695,1737541846135,-500.0,0.00019714,2]
[349969696,1737541846150,-500.0,0.00019714,2]
[349969697,1737541846163,-504.37,0.00019714,2]
[349969698,1737541846175,-500.0,0.00019714,2]
[349969699,1737541846189,-500.0,0.00019714,2]
[349969700,1737541846200,-500.0,0.00019714,2]
[349969701,1737541846211,-596.1,0.000198,2]
[349969702,1737541846224,-168.35,0.00019811,2]
[349969703,1737541846237,-864.4920526,0.00019831,2]
[349969704,1737541846249,-654.69,0.00019887,2]
[349969705,1737541846261,-1545.87,0.00019887,2]
[349969706,1737541846273,-500.0,0.00019887,2]
[349969707,1737541846285,-1380.69,0.00019887,2]
[349969708,1737541846297,-907.88,0.00019887,2]
[349969709,1737541846309,-1850.42,0.00019887,2]
[349969710,1737541846322,-1516.91,0.00019887,2]
[349969711,1737541846334,-953.88,0.00019887,2]
[349969712,1737541846346,-500.0,0.00019887,2]
[349969713,1737541846358,-1013.98,0.00019887,2]
[349969714,1737541846370,-722.46,0.00019887,2]
[349969715,1737541846382,-1164.88,0.00019887,2]
[349969716,1737541846394,-902.13,0.00019887,2]
[349969717,1737541846406,-1003.6,0.00019887,2]
[349969718,1737541846418,-656.77,0.00019887,2]
[349969719,1737541846429,-1484.76,0.00019887,2]
[349969720,1737541846440,-500.0,0.00019887,2]
[349969721,1737541846452,-1336.41,0.00019887,2]
[349969722,1737541846463,-2006.54,0.00019887,2]
[349969723,1737541846475,-500.0,0.00019887,2]
[349969724,1737541846487,-677.86,0.00019887,2]
[349969725,1737541846499,-886.2,0.00019887,2]
[349969726,1737541846511,-2151.01,0.00019887,2]
[349969727,1737541846521,-3414.46,0.00019887,2]
[349969728,1737541846531,-2824.22,0.00019887,2]
[349969729,1737541846541,-562.537247,0.00019887,2]
[349969730,1737541846551,-841.92,0.00019887,2]
[349969731,1737541846560,-500.0,0.00019887,2]
[349969732,1737541846572,-944.29,0.00019887,2]
[349969733,1737541846582,-1011.31,0.00019887,2]
[349969734,1737541846592,-886.83,0.00019887,2]
[349969735,1737541846601,-956.347784,0.00019887,2]
[349969736,1737541846850,-1869.72,0.00019887,2]
[349969737,1737541846880,-3466.56,0.00019887,2]
[349969738,1737541846896,-500.0,0.00019887,2]
[349969739,1737541846906,-1416.25,0.00019887,2]
[349969740,1737541846915,-689.18,0.00019887,2]
[349969741,1737541846925,-1332.39,0.00019887,2]
[349969742,1737541846934,-2217.4,0.00019887,2]
[349969743,1737541846944,-806.82,0.00019887,2]
[349969744,1737541846953,-500.0,0.00019887,2]
[349969745,1737541846963,-1001.78,0.00019887,2]
[349969746,1737541846973,-1215.48,0.00019887,2]
[349969747,1737541846983,-500.0,0.00019887,2]
[349969748,1737541846993,-2702.1,0.00019887,2]
[349969749,1737541847003,-835.57,0.00019887,2]
[349969750,1737541847013,-18063.72686618,0.000199,7]
[349969751,1737541847023,-205.78419632,0.000199,2]
[349969752,1737541847039,-4112.1530931,0.000199,2]
[349969753,1737541847050,-472.86792644,0.00019908,2]
[349969754,1737541847060,-163.47,0.00019938,2]
[349969755,1737541847072,-529.48360434,0.00019973,2]
[349969756,1737541847083,-530.79613968,0.00019973,2]
[349969757,1737541847093,-501.82071939,0.00019973,2]
[349969758,1737541847103,-500.0,0.00019985,2]
[349969759,1737541847113,-778.51,0.00019985,2]
[349969760,1737541847123,-500.0,0.00019986,2]
[349969761,1737541847134,-500.0,0.00019986,2]
[349969762,1737541847145,-500.0,0.00019986,2]
[349969763,1737541847155,-655.58,0.00019986,2]
[349969764,1737541847165,-720.75,0.00019986,2]
[349969765,1737541847176,-500.0,0.00019986,2]
[349969766,1737541847185,-510.91,0.00019986,2]
[349969767,1737541847195,-500.0,0.00019986,2]
[349969768,1737541847204,-500.0,0.00019986,2]
[349969769,1737541847214,-500.0,0.00019986,2]
[349969770,1737541847225,-589.74,0.00019986,2]
[349969771,1737541847235,-500.0,0.00019986,2]
[349969772,1737541847245,-708.62,0.00019986,2]
[349969773,1737541847255,-500.0,0.00019986,2]
[349969774,1737541847265,-625.44,0.00019986,2]
[349969775,1737541847274,-500.0,0.00019986,2]
[349969776,1737541847285,-500.0,0.00019986,2]
[349969777,1737541847295,-500.0,0.00019986,2]
[349969778,1737541847306,-550.34,0.00019986,2]
[349969779,1737541847316,-500.0,0.00019986,2]
[349969780,1737541847328,-834.71,0.00019986,2]
[349969781,1737541847338,-500.0,0.00019986,2]
[349969782,1737541847348,-902.73,0.00019986,2]
[349969783,1737541847359,-872.01,0.00019986,2]
[349969784,1737541847370,-500.0,0.00019986,2]
[349969785,1737541847381,-619.72,0.00019986,2]
[349969786,1737541847391,-500.0,0.00019986,2]
[349969787,1737541847402,-876.53,0.00019986,2]
[349969788,1737541847413,-500.0,0.00019986,2]
[349969789,1737541847423,-613.46,0.00019986,2]
[349969790,1737541847437,-500.0,0.00019986,2]
[349969791,1737541847447,-503.02368211,0.00019986,2]
[349969792,1737541847458,-500.0,0.00019986,2]
[349969793,1737541847468,-722.25,0.00019986,2]
[349969794,1737541847479,-500.0,0.00019986,2]
[349969795,1737541847490,-668.05,0.00019986,2]
[349969796,1737541847500,-675.35,0.00019986,2]
[349969797,1737541847510,-677.79,0.00019986,2]
[349969798,1737541847522,-544.94,0.00019986,2]
[349969799,1737541847532,-553.72,0.00019986,2]
[349969800,1737541847543,-603.56,0.00019986,2]
[349969801,1737541847552,-783.76,0.00019986,2]
[349969802,1737541847563,-500.0,0.00019986,2]
[349969803,1737541847573,-500.0,0.00019986,2]
[349969804,1737541847583,-575.54,0.00019986,2]
[349969805,1737541847592,-1909.22,0.00019986,2]
[349969806,1737541847603,-1033.66,0.00019986,2]
[349969807,1737541847613,-1473.85,0.00019986,2]
[349969808,1737541847622,-693.15,0.00019986,2]
[349969809,1737541847632,-500.0,0.00019986,2]
[349969810,1737541847641,-1568.94,0.00019986,2]
[349969811,1737541847651,-551.67,0.00019986,2]
[349969812,1737541847661,-500.0,0.00019986,2]
[349969813,1737541847670,-3589.15,0.00019986,2]
[349969814,1737541847679,-638.09,0.00019986,2]
[349969815,1737541847689,-1417.99,0.00019986,2]
[349969816,1737541847700,-500.0,0.00019986,2]
[349969817,1737541847711,-2387.18,0.00019986,2]
[349969818,1737541847722,-3484.74,0.00019986,2]
[349969819,1737541847731,-1031.11,0.00019986,2]
[349969820,1737541847742,-500.0,0.00019986,2]
[349969821,1737541847752,-1387.85,0.00019986,2]
[349969822,1737541847764,-500.0,0.00019986,2]
[349969823,1737541847775,-500.0,0.00019986,2]
[349969824,1737541847785,-500.0,0.00019986,2]
[349969825,1737541847795,-2015.76,0.00019986,2]
[349969826,1737541847804,-590.43,0.00019986,2]
[349969827,1737541847819,-500.0,0.00019986,2]
[349969828,1737541847828,-500.0,0.00019986,2]
[349969829,1737541847837,-2072.9,0.00019986,2]
[349969830,1737541847847,-1138.61,0.00019986,2]
[349969831,1737541847857,-2193.32,0.00019986,2]
[349969832,1737541847867,-500.0,0.00019986,2]
[349969833,1737541847878,-1037.28,0.00019986,2]
[349969834,1737541847888,-1217.24,0.00019986,2]
[349969835,1737541847901,-589.16,0.00019986,2]
[349969836,1737541847912,-500.0,0.00019986,2]
[349969837,1737541847921,-500.0,0.00019986,2]
[349969838,1737541847931,-500.0,0.00019986,2]
[349969839,1737541847940,-500.0,0.00019986,2]
[349969840,1737541847949,-738.06,0.00019986,2]
[349969841,1737541847959,-516.2,0.00019986,2]
[349969842,1737541847968,-530.64,0.00019986,2]
[349969843,1737541847978,-620.17,0.00019986,2]
[349969844,1737541847988,-1951.53,0.00019986,2]
[349969845,1737541847998,-500.0,0.00019986,2]
[349969846,1737541848009,-2154.26,0.00019986,2]
[349969847,1737541848018,-500.0,0.00019986,2]
[349969848,1737541848027,-500.0,0.00019986,2]
[349969849,1737541848037,-500.0,0.00019986,2]
[349969850,1737541848046,-500.0,0.00019986,2]
[349969851,1737541848056,-500.0,0.00019986,2]
[349969852,1737541848065,-500.0,0.00019986,2]
[349969853,1737541848076,-500.0,0.00019986,2]
[349969854,1737541848085,-500.0,0.00019986,2]
[349969855,1737541848095,-500.0,0.00019986,2]
[349969856,1737541848105,-752.45,0.00019986,2]
[349969857,1737541848114,-576.31,0.00019986,2]
[349969858,1737541848124,-628.0,0.00019986,2]
[349969859,1737541848134,-500.0,0.00019986,2]
[349969860,1737541848143,-571.59,0.00019986,2]
[349969861,1737541848153,-1387.31,0.00019986,2]
[349969862,1737541848162,-501.03,0.00019986,2]
[349969863,1737541848171,-500.0,0.00019986,2]
[349969864,1737541848181,-500.0,0.00019986,2]
[349969865,1737541848191,-292.54,0.00019986,2]
[349969866,1737541848201,-1834.49,0.00019986,2]
[349969867,1737541848211,-500.0,0.00019986,2]
[349969868,1737541848221,-632.98,0.00019986,2]
[349969869,1737541848231,-500.0,0.00019987,2]
[349969870,1737541848242,-211.25410194,0.00019987,2]
[349969871,1737541848251,-500.0,0.00019987,2]
[349969872,1737541848261,-500.0,0.00019987,2]
[349969873,1737541848271,-500.0,0.00019987,2]
[349969874,1737541848280,-500.0,0.00019987,2]
[349969875,1737541848290,-500.0,0.00019987,2]
[349969876,1737541848300,-679.64,0.00019987,2]
[349969877,1737541848309,-500.0,0.00019987,2]
[349969878,1737541848320,-500.0,0.00019987,2]
[349969879,1737541848329,-500.0,0.00019987,2]
[349969880,1737541848339,-500.0,0.00019987,2]
[349969881,1737541848348,-309.90804829,0.00019987,2]
[349969882,1737541848358,-500.0,0.00019987,2]
[349969883,1737541848371,-500.0,0.00019987,2]
[349969884,1737541848383,-500.0,0.00019987,2]
[349969885,1737541848393,-500.0,0.00019987,2]
[349969886,1737541848403,-500.0,0.00019987,2]
[349969887,1737541848413,-500.0,0.00019987,2]
[349969888,1737541848422,-500.0,0.00019987,2]
[349969889,1737541848432,-649.13,0.00019987,2]
[349969890,1737541848442,-500.0,0.00019987,2]
[349969891,1737541848452,-500.0,0.00019987,2]
[349969892,1737541848462,-500.0,0.00019987,2]
[349969893,1737541848472,-803.34,0.00019987,2]
[349969894,1737541848481,-500.0,0.00019987,2]
[349969895,1737541848490,-558.09,0.00019987,2]
[349969896,1737541848500,-500.0,0.00019987,2]
[349969897,1737541848509,-685.56,0.00019987,2]
[349969898,1737541848518,-500.0,0.00019987,2]
[349969899,1737541848528,-500.0,0.00019987,2]
[349969900,1737541848537,-500.0,0.00019987,2]
[349969901,1737541848546,-500.0,0.00019987,2]
[349969902,1737541848556,-551.34,0.00019987,2]
[349969903,1737541848566,-500.0,0.00019987,2]
[349969904,1737541848577,-500.0,0.00019987,2]
[349969905,1737541848588,-500.0,0.00019987,2]
[349969906,1737541848598,-500.0,0.00019987,2]
[349969907,1737541848607,-152.04102302,0.00019987,2]
[349969908,1737541848617,-500.0,0.00019987,2]
[349969909,1737541848627,-500.0,0.00019987,2]
[349969910,1737541848637,-576.63,0.00019987,2]
[349969911,1737541848647,-500.0,0.00019987,2]
[349969912,1737541848657,-500.0,0.00019987,2]
[349969913,1737541848667,-500.0,0.00019987,2]
[349969914,1737541848676,-645.06,0.00019987,2]
[349969915,1737541848686,-613.56,0.00019987,2]
[349969916,1737541848695,-344.23776851,0.00019987,2]
[349969917,1737541848706,-500.0,0.00019987,2]
[349969918,1737541848716,-741.78,0.00019987,2]
[349969919,1737541848727,-572.14,0.00019987,2]
[349969920,1737541848737,-808.38,0.00019987,2]
[349969921,1737541848747,-500.0,0.00019987,2]
[349969922,1737541848757,-500.0,0.00019987,2]
[349969923,1737541848767,-500.0,0.00019987,2]
[349969924,1737541848777,-500.0,0.00019987,2]
[349969925,1737541848787,-500.0,0.00019987,2]
[349969926,1737541848797,-500.0,0.00019987,2]
[349969927,1737541848807,-500.0,0.00019987,2]
[349969928,1737541848819,-792.14,0.00019987,2]
[349969929,1737541848830,-674.1,0.00019987,2]
[349969930,1737541848841,-500.0,0.00019987,2]
[349969931,1737541848851,-864.89,0.00019987,2]
[349969932,1737541848863,-740.39,0.00019987,2]
[349969933,1737541848874,-500.0,0.00019987,2]
[349969934,1737541848884,-500.0,0.00019987,2]
[349969935,1737541848896,-500.0,0.00019987,2]
[349969936,1737541848906,-500.0,0.00019987,2]
[349969937,1737541848915,-500.0,0.00019987,2]
[349969938,1737541848925,-500.0,0.00019987,2]
[349969939,1737541848935,-500.0,0.00019987,2]
[349969940,1737541848944,-275.02,0.00019987,2]
[349969941,1737541848954,-500.0,0.00019987,2]
[349969942,1737541848963,-500.0,0.00019987,2]
[349969943,1737541848972,-500.0,0.00019987,2]
[349969944,1737541848982,-500.0,0.00019987,2]
[349969945,1737541848993,-500.0,0.00019987,2]
[349969946,1737541849003,-500.0,0.00019987,2]
[349969947,1737541849012,-680.5,0.00019987,2]
[349969948,1737541849022,-500.0,0.00019987,2]
[349969949,1737541849033,-500.0,0.00019987,2]
[349969950,1737541849043,-1854.8,0.00019987,2]
[349969951,1737541849053,-4049.8,0.00019987,2]
[349969952,1737541849062,-500.0,0.00019987,2]
[349969953,1737541849072,-730.82,0.00019987,2]
[349969954,1737541849082,-255.18,0.00019987,2]
[349969955,1737541849092,-7307.34,0.00019987,2]
[349969956,1737541849102,-822.78,0.00019987,2]
[349969957,1737541849112,-500.0,0.00019987,2]
[349969958,1737541849122,-179.1134591,0.00019987,2]
[349969959,1737541849133,-985.38,0.00019987,2]
[349969960,1737541849142,-500.0,0.00019987,2]
[349969961,1737541849153,-500.0,0.00019987,2]
[349969962,1737541849163,-764.97,0.00019987,2]
[349969963,1737541849173,-617.66,0.00019987,2]
[349969964,1737541849183,-2071.46,0.00019987,2]
[349969965,1737541849193,-609.77891105,0.00019987,2]
[349969966,1737541849203,-500.0,0.00019987,2]
[349969967,1737541849212,-500.0,0.00019987,2]
[349969968,1737541849222,-500.0,0.00019987,2]
[349969969,1737541849233,-500.0,0.00019987,2]
[349969970,1737541849242,-521.86,0.00019987,2]
[349969971,1737541849252,-500.0,0.00019987,2]
[349969972,1737541849262,-934.2,0.00019987,2]
[349969973,1737541849272,-500.0,0.00019987,2]
[349969974,1737541849283,-500.0,0.00019987,2]
[349969975,1737541849294,-1295.45,0.00019987,2]
[349969976,1737541849304,-1443.13,0.00019987,2]
[349969977,1737541849315,-500.0,0.00019987,2]
[349969978,1737541849326,-500.0,0.00019987,2]
[349969979,1737541849336,-500.0,0.00019987,2]
[349969980,1737541849346,-1043.46,0.00019987,2]
[349969981,1737541849356,-1000.0,0.00019987,2]
[349969982,1737541849366,-500.0,0.00019987,2]
[349969983,1737541849379,-706.31,0.00019987,2]
[349969984,1737541849389,-734.78,0.00019987,2]
[349969985,1737541849399,-500.0,0.00019987,2]
[349969986,1737541849408,-1024.34,0.00019987,2]
[349969987,1737541849419,-2026.46,0.00019987,2]
[349969988,1737541849430,-1666.71,0.00019987,2]
[349969989,1737541849440,-500.0,0.00019987,2]
[349969990,1737541849450,-856.41,0.00019987,2]
[349969991,1737541849460,-500.0,0.00019987,2]
[349969992,1737541849469,-500.0,0.00019987,2]
[349969993,1737541849481,-500.0,0.00019987,2]
[349969994,1737541849491,-797.53,0.00019987,2]
[349969995,1737541849501,-512.22749661,0.00019987,2]
[349969996,1737541849512,-500.0,0.00019987,2]
[349969997,1737541849522,-500.0,0.00019987,2]
[349969998,1737541849532,-500.0,0.00019987,2]
[349969999,1737541849542,-500.0,0.00019987,2]
[349970000,1737541849551,-500.0,0.00019988,2]
[349970001,1737541849561,-500.0,0.00019988,2]
[349970002,1737541849571,-438.72967266,0.00019988,2]
[349970003,1737541849582,-500.0,0.00019988,2]
[349970004,1737541849591,-500.0,0.00019988,2]
[349970005,1737541849602,-500.0,0.00019988,2]
[349970006,1737541849612,-504.37,0.00019988,2]
[349970007,1737541849622,-500.0,0.00019988,2]
[349970008,1737541849633,-500.0,0.00019988,2]
[349970009,1737541849643,-29160.14537047,0.00019999,2]
[349970010,1737541849654,-4899.85,0.0002,2]
[349970011,1737541849665,-12499.99,0.0002,2]
[349970012,1737541849674,-5000.0,0.0002,2]
[349970013,1737541849685,-10494.0,0.0002,2]
[349970014,1737541849695,-2658.1773366,0.0002,2]
[349970015,1737541849705,-63524.74120722,0.0002,14]
[349970016,1737541849716,-2489.98994664,0.0002,4]
[349970017,1737541849725,-98463.74250549,0.0002,2]
[349970018,1737541849735,-205.78419618,0.00020011,2]
[349970019,1737541849744,-270.70693079,0.00020072,2]
[349970020,1737541849754,-910.44,0.00020082,2]
[349970021,1737541849763,-406.4745265,0.00020093,2]
[349970022,1737541849773,-205.78419618,0.00020122,2]
[349970023,1737541849783,-864.4920526,0.00020127,2]
[349970024,1737541849793,-150.99,0.00020145,2]
[349970025,1737541849803,-167.06039712,0.00020161,2]
[349970026,1737541849815,-184.20195633,0.00020161,2]
[349970027,1737541849825,-654.69,0.00020161,2]
[349970028,1737541849835,-1545.87,0.00020161,2]
[349970029,1737541849844,-1380.69,0.00020161,2]
[349970030,1737541849855,-907.88,0.00020161,2]
[349970031,1737541849866,-1850.42,0.00020161,2]
[349970032,1737541849876,-1516.91,0.00020161,2]
[349970033,1737541849886,-953.88,0.00020161,2]
[349970034,1737541849898,-1013.98,0.00020161,2]
[349970035,1737541849908,-722.46,0.00020161,2]
[349970036,1737541849919,-1164.88,0.00020161,2]
[349970037,1737541849931,-902.13,0.00020161,2]
[349970038,1737541849941,-1003.6,0.00020161,2]
[349970039,1737541849951,-656.77,0.00020161,2]
[349970040,1737541849961,-1484.76,0.00020161,2]
[349970041,1737541849971,-500.0,0.00020161,2]
[349970042,1737541849980,-1336.41,0.00020161,2]
[349970043,1737541849990,-2006.54,0.00020161,2]
[349970044,1737541850001,-500.0,0.00020161,2]
[349970045,1737541850011,-677.86,0.00020161,2]
[349970046,1737541850021,-886.2,0.00020161,2]
[349970047,1737541850032,-2151.01,0.00020161,2]
[349970048,1737541850042,-3414.46,0.00020161,2]
[349970049,1737541850052,-2824.22,0.00020161,2]
[349970050,1737541850061,-562.537247,0.00020161,2]
[349970051,1737541850071,-841.92,0.00020161,2]
[349970052,1737541850081,-500.0,0.00020161,2]
[349970053,1737541850091,-944.29,0.00020161,2]